bitfinex/quotes_SOLUSD_20250108
["timestamp","ask_amount","ask_price","bid_price","bid_amount"]
[1736370458561,23.776884,195.56,195.46,26.72393822]
[1736370458774,23.776884,195.56,195.46,1.5843]
[1736370459256,6.3061,195.55,195.45,25.13963822]
[1736370459474,6.3061,195.55,195.43,25.13963822]
[1736370460432,6.3061,195.55,195.44,25.13963822]
[1736370460847,6.3061,195.6,195.49,25.13963822]
[1736370461032,6.3061,195.6,195.5,25.13963822]
[1736370461236,6.3061,195.6,195.47,2.4]
[1736370461457,23.776884,195.59,195.47,2.4]
[1736370461953,20.0,195.57,195.47,2.4]
[1736370462656,23.776884,195.56,195.44,25.13963822]
[1736370463340,20.0,195.57,195.48,25.13963822]
[1736370463540,20.0,195.57,195.49,25.13963822]
[1736370464335,6.3061,195.6,195.49,25.13963822]
[1736370465049,6.3061,195.6,195.48,25.13963822]
[1736370465244,6.3061,195.6,195.49,25.13963822]
[1736370465841,6.3061,195.6,195.47,25.13963822]
[1736370466055,6.3061,195.6,195.48,25.13963822]
[1736370466648,6.3061,195.6,195.47,25.13963822]
[1736370466962,6.3061,195.6,195.48,25.13963822]
[1736370467150,6.3061,195.6,195.47,25.13963822]
[1736370467770,6.3061,195.6,195.48,27.53963822]
[1736370467964,23.776884,195.59,195.48,2.4]
[1736370471352,20.0,195.57,195.48,27.53963822]
[1736370471671,6.3061,195.6,195.48,27.53963822]
[1736370472462,6.3061,195.6,195.49,25.13963822]
[1736370473752,6.3061,195.6,195.48,27.53963822]
[1736370473958,6.3061,195.6,195.49,25.13963822]
[1736370474169,6.3061,195.6,195.51,25.13963822]
[1736370474370,0.5169,195.64,195.55,25.13963822]
[1736370474547,0.5169,195.64,195.56,25.13963822]
[1736370474864,6.0926,195.65,195.58,25.13963822]
[1736370475270,6.0926,195.65,195.55,47.53963822]
[1736370475651,6.0926,195.65,195.57,25.13963822]
[1736370475860,6.0926,195.65,195.59,25.13963822]
[1736370476170,23.776884,195.69,195.59,25.13963822]
[1736370477068,9.0095,195.7,195.59,25.13963822]
[1736370477765,9.0095,195.7,195.58,37.92163822]
[1736370478083,23.776884,195.69,195.57,25.13963822]
[1736370478269,23.776884,195.69,195.59,25.13963822]
[1736370478566,23.776884,195.69,195.58,25.13963822]
[1736370478752,23.776884,195.69,195.58,45.13963822]
[1736370478957,23.776884,195.69,195.59,25.13963822]
[1736370480060,6.6095,195.7,195.62,25.13963822]
[1736370480659,6.6095,195.7,195.61,25.13963822]
[1736370480875,6.6095,195.7,195.59,25.13963822]
[1736370481083,6.6095,195.7,195.57,25.13963822]
[1736370481247,6.6095,195.7,195.55,15.1838]
[1736370481248,6.6095,195.7,195.59,25.13963822]
[1736370481571,6.6095,195.7,195.61,25.13963822]
[1736370482363,6.6095,195.7,195.6,25.13963822]
[1736370482568,6.6095,195.7,195.58,37.92173822]
[1736370483177,6.6095,195.7,195.6,25.13963822]
[1736370483383,6.6095,195.7,195.6,15.7043409]
[1736370484382,6.6095,195.7,195.59,15.7043409]
[1736370484748,6.6095,195.7,195.6,15.7043409]
[1736370485176,6.6095,195.7,195.62,15.7043409]
[1736370485559,6.6095,195.7,195.61,15.7043409]
[1736370485774,6.6095,195.7,195.6,15.7043409]
[1736370486587,6.6095,195.7,195.58,15.7043409]
[1736370486799,81.3,195.68,195.55,15.7043409]
[1736370486966,81.3,195.68,195.55,18.1043409]
[1736370487603,23.776884,195.67,195.55,15.7043409]
[1736370488574,23.776884,195.67,195.56,15.7043409]
[1736370488891,81.3,195.68,195.58,15.7043409]
[1736370491082,81.3,195.68,195.59,15.7043409]
[1736370491382,81.3,195.68,195.6,15.7043409]
[1736370491584,81.3,195.68,195.59,15.7043409]
[1736370491770,81.3,195.68,195.57,2.4]
[1736370491971,20.0,195.64,195.52,1.6078]
[1736370492178,20.0,195.64,195.52,2.4]
[1736370492375,6.3995,195.63,195.51,18.1043409]
[1736370493392,0.5169,195.62,195.51,15.7043409]
[1736370494268,0.5169,195.62,195.52,15.7043409]
[1736370495982,0.5169,195.62,195.54,15.7043409]
[1736370496185,0.5169,195.62,195.55,15.7043409]
[1736370496379,0.5169,195.62,195.5,30.8919409]
[1736370496380,0.5169,195.62,195.53,15.7043409]
[1736370496618,0.5169,195.62,195.51,15.7043409]
[1736370496619,24.293784,195.62,195.51,15.7043409]
[1736370496780,20.0,195.59,195.5,2.4]
[1736370497618,20.0,195.59,195.49,15.7043409]
[1736370498102,20.0,195.59,195.5,15.7043409]
[1736370498575,23.776884,195.58,195.44,12.7914]
[1736370498782,23.776884,195.58,195.46,15.7043409]
[1736370498989,23.776884,195.58,195.48,15.7043409]
[1736370499203,20.0,195.59,195.49,15.7043409]
[1736370499492,20.0,195.59,195.47,15.7043409]
[1736370499880,23.776884,195.58,195.47,15.7043409]
[1736370500294,23.776884,195.58,195.46,15.7043409]
[1736370500489,20.0,195.59,195.49,15.7043409]
[1736370500897,20.0,195.59,195.5,15.7043409]
[1736370501275,2.4,195.61,195.51,15.7043409]
[1736370501474,81.8169,195.62,195.54,15.7043409]
[1736370501698,81.8169,195.62,195.56,15.7043409]
[1736370501905,81.8169,195.62,195.55,15.7043409]
[1736370502082,0.5169,195.62,195.55,15.7043409]
[1736370502478,6.3995,195.63,195.56,15.7043409]
[1736370502796,6.3995,195.63,195.55,15.7043409]
[1736370504299,6.3995,195.63,195.54,15.7043409]
[1736370505112,23.776884,195.62,195.5,18.1043409]
[1736370505297,23.776884,195.62,195.5,2.4]
[1736370505298,20.0,195.59,195.5,2.4]
[1736370505997,20.0,195.59,195.49,15.7043409]
[1736370505998,20.0,195.58,195.49,15.7043409]
[1736370506197,20.0,195.58,195.47,18.1043409]
[1736370506509,0.5169,195.57,195.47,18.1043409]
[1736370506696,0.5169,195.57,195.47,15.7043409]
[1736370507191,0.5169,195.57,195.48,15.7043409]
[1736370507810,0.5169,195.57,195.49,15.7043409]
[1736370510017,0.5169,195.57,195.5,15.7043409]
[1736370510192,0.5169,195.57,195.51,15.7043409]
[1736370510390,81.3,195.61,195.53,15.7043409]
[1736370510694,81.3,195.61,195.52,15.7043409]
[1736370511394,81.3,195.61,195.49,23.776884]
[1736370511395,81.3,195.61,195.53,15.7043409]
[1736370511710,81.3,195.61,195.54,15.7043409]
[1736370512015,81.3,195.61,195.53,15.7043409]
[1736370512415,81.3,195.61,195.52,15.7043409]
[1736370513002,81.3,195.61,195.53,15.7043409]
[1736370513598,81.3,195.61,195.51,15.7043409]
[1736370513997,81.3,195.61,195.52,15.7043409]
[1736370514197,81.3,195.61,195.55,15.7043409]
[1736370514605,0.5169,195.67,195.58,15.7043409]
[1736370514808,0.5169,195.67,195.62,15.7043409]
[1736370515002,6.3142,195.68,195.63,15.7043409]
[1736370515402,6.3142,195.68,195.62,15.7043409]
[1736370516694,6.8311,195.72,195.65,15.7043409]
[1736370516915,6.3142,195.72,195.66,15.7043409]
[1736370517119,8.43423875,195.77,195.67,15.7043409]
[1736370517326,14.74843875,195.77,195.69,15.7043409]
[1736370517993,6.8311,195.77,195.68,15.7043409]
[1736370518195,6.8311,195.77,195.69,15.7043409]
[1736370518433,6.8311,195.77,195.7,15.7043409]
[1736370518596,6.8311,195.77,195.67,18.1043409]
[1736370519004,6.8311,195.77,195.67,2.4]
[1736370519220,6.8311,195.77,195.67,18.1043409]
[1736370520154,6.3142,195.77,195.69,15.7043409]
[1736370520311,6.3142,195.77,195.7,15.7043409]
[1736370520703,6.3142,195.77,195.71,15.7043409]
[1736370521337,6.3142,195.77,195.7,15.7043409]
[1736370521707,6.3142,195.77,195.68,15.7043409]
[1736370524232,6.3142,195.77,195.66,15.7043409]
[1736370524437,6.3142,195.77,195.65,15.7043409]
[1736370524618,6.3142,195.77,195.67,15.7043409]
[1736370525219,6.3142,195.77,195.68,15.7043409]
[1736370525437,6.3142,195.77,195.65,2.4]
[1736370525438,6.3142,195.77,195.7,15.7043409]
[1736370525751,6.3142,195.77,195.68,15.7043409]
[1736370526052,6.3142,195.77,195.66,15.7043409]
[1736370526247,6.3142,195.77,195.67,15.7043409]
[1736370526550,6.3142,195.77,195.68,15.7043409]
[1736370526744,6.3142,195.77,195.67,15.7043409]
[1736370528354,6.3142,195.77,195.66,2.4]
[1736370528355,6.3142,195.77,195.68,15.7043409]
[1736370528518,6.3142,195.77,195.66,2.4]
[1736370528519,81.8169,195.81,195.72,15.7043409]
[1736370529139,20.0,195.78,195.72,15.7043409]
[1736370529738,20.0,195.78,195.71,15.7043409]
[1736370530151,20.0,195.78,195.7,15.7043409]
[1736370530349,20.0,195.78,195.71,15.7043409]
[1736370530869,6.2761,195.82,195.75,15.7043409]
[1736370531045,0.5169,195.86,195.77,15.7043409]
[1736370531373,20.0,195.84,195.76,15.7043409]
[1736370531579,20.0,195.84,195.74,15.7043409]
[1736370532076,0.5169,195.86,195.75,15.7043409]
[1736370532752,20.0,195.84,195.75,15.7043409]
[1736370533274,0.5169,195.86,195.75,15.7043409]
[1736370533486,20.0,195.84,195.74,15.7043409]
[1736370537877,20.0,195.84,195.76,15.7043409]
[1736370538176,0.5169,195.86,195.76,15.7043409]
[1736370538576,0.5169,195.86,195.75,15.7043409]
[1736370539078,0.5169,195.86,195.76,15.7043409]
[1736370539757,0.5169,195.86,195.78,15.7043409]
[1736370539961,0.5169,195.86,195.77,15.7043409]
[1736370540772,0.5169,195.86,195.76,15.7043409]
[1736370542949,0.5169,195.86,195.77,15.7043409]
[1736370543649,6.3207,195.87,195.79,15.7043409]
[1736370544072,0.5169,195.9,195.82,15.7043409]
[1736370544278,0.5169,195.9,195.76,23.776884]
[1736370544279,6.3714,195.92,195.85,15.7043409]
[1736370544564,71.25604876,196.02,195.88,15.7043409]
[1736370544565,6.0288,195.97,195.88,15.7043409]
[1736370544751,6.0288,195.97,195.9,15.7043409]
[1736370544950,6.0288,195.97,195.87,2.42]
[1736370544951,6.0288,195.97,195.91,15.7043409]
[1736370545668,87.5939,196.02,195.94,15.7043409]
[1736370545870,87.5939,196.02,195.9,23.776884]
[1736370545871,6.2939,196.02,195.95,15.7043409]
[1736370547065,6.2939,196.02,195.93,15.7043409]
[1736370547366,6.2939,196.02,195.94,15.7043409]
[1736370548573,6.2939,196.02,195.93,15.7043409]
[1736370548872,6.2939,196.02,195.9,18.1643409]
[1736370549075,6.2939,196.02,195.91,15.7043409]
[1736370549262,6.2939,196.02,195.92,15.7043409]
[1736370549450,6.2939,196.02,195.93,15.7043409]
[1736370549977,6.2939,196.02,195.95,15.7043409]
[1736370550144,6.2939,196.02,195.96,15.7043409]
[1736370550344,0.5169,196.05,195.97,15.7043409]
[1736370551064,0.5169,196.05,195.96,15.7043409]
[1736370551266,0.5169,196.05,195.94,23.776884]
[1736370551267,0.5169,196.05,195.97,15.7043409]
[1736370551877,0.5169,196.09,196.04,15.7043409]
[1736370552047,6.5339,196.12,196.05,15.7043409]
[1736370552972,6.5339,196.12,196.06,15.7043409]
[1736370553271,0.5169,196.14,196.06,15.7043409]
[1736370553470,0.5169,196.14,196.05,18.1843409]
[1736370553766,0.5169,196.14,196.05,2.48]
[1736370554660,20.0,196.12,196.05,2.48]
[1736370555876,0.5169,196.14,196.05,2.48]
[1736370556050,0.5169,196.14,196.06,15.7043409]
[1736370557274,0.5169,196.14,196.05,18.1843409]
[1736370557659,81.3,196.11,196.01,15.7043409]
[1736370558061,81.3,196.11,196.0,18.1843409]
[1736370558670,81.3,196.11,196.0,2.48]
[1736370558979,81.3,196.11,196.0,15.7043409]
[1736370559283,81.3,196.11,195.99,15.7043409]
[1736370559483,81.3,196.11,196.0,15.7043409]
[1736370559662,81.3,196.11,196.03,15.7043409]
[1736370560370,81.3,196.11,195.99,0.76507087]
[1736370560371,0.5169,196.14,196.05,15.7043409]
[1736370560577,0.5169,196.14,196.06,15.7043409]
[1736370560779,0.5169,196.14,196.07,15.7043409]
[1736370560959,0.5169,196.14,196.05,18.1843409]
[1736370561361,0.5169,196.14,196.05,2.48]
[1736370561990,24.293784,196.14,196.05,2.48]
[1736370562169,20.0,196.1,196.0,18.1843409]
[1736370562372,20.0,196.1,196.0,2.48]
[1736370563268,20.0,196.1,195.97,17.2887409]
[1736370563269,81.3,196.09,195.97,17.2887409]
[1736370563470,81.3,196.08,195.97,4.0644]
[1736370563671,81.3,196.08,195.97,19.7687409]
[1736370564759,81.3,196.08,196.0,15.7043409]
[1736370566565,6.1016,196.07,195.97,2.48]
[1736370566762,6.1016,196.07,195.95,18.1843409]
[1736370567285,6.1016,196.07,195.95,15.7043409]
[1736370567781,20.0,196.04,195.94,15.7043409]
[1736370567984,81.3,196.04,195.92,17.3285409]
[1736370568160,81.3,196.04,195.88,15.7043409]
[1736370568161,20.0,196.01,195.88,15.7043409]
[1736370568367,6.6127,196.0,195.87,3.9802]
[1736370568583,6.6127,196.0,195.87,1.5002]
[1736370568771,6.6127,196.0,195.81,138.5]
[1736370568772,20.0,195.92,195.78,15.704341]
[1736370568970,2.48,195.91,195.75,15.7043409]
[1736370569304,2.48,195.91,195.76,15.7043409]
[1736370569305,20.0,195.87,195.76,15.7043409]
[1736370569490,20.0,195.87,195.75,15.7043409]
[1736370569791,20.0,195.87,195.71,1.5002]
[1736370569792,20.0,195.87,195.74,15.7043409]
[1736370569999,6.4848,195.86,195.71,17.2045409]
[1736370570212,6.4848,195.86,195.73,23.776884]
[1736370570367,2.5,195.85,195.73,39.4812249]
[1736370571405,2.5,195.85,195.73,25.09381635]
[1736370572094,6.4848,195.86,195.73,25.09381635]
[1736370572283,2.5,195.85,195.73,25.09381635]
[1736370572665,20.0,195.83,195.73,23.776884]
[1736370573064,20.0,195.83,195.72,25.09381635]
[1736370573270,20.0,195.83,195.69,25.09381635]
[1736370573564,23.776884,195.82,195.68,25.09381635]
[1736370573785,81.3,195.82,195.7,25.09381635]
[1736370573970,2.5,195.81,195.7,25.09381635]
[1736370574172,2.5,195.81,195.69,25.09381635]
[1736370574485,2.5,195.81,195.68,48.87070035]
[1736370574682,20.0,195.79,195.68,25.09381635]
[1736370575066,20.0,195.79,195.69,25.09381635]
[1736370575270,20.0,195.79,195.68,25.09381635]
[1736370577665,2.5,195.81,195.61,1.5463]
[1736370577666,26.3527,195.75,195.61,1.5463]
[1736370577870,2.48,195.74,195.62,25.09381635]
[1736370578096,2.48,195.74,195.61,1.5463]
[1736370578097,2.48,195.74,195.63,45.09381635]
[1736370578294,2.48,195.74,195.66,25.09381635]
[1736370578675,26.3527,195.75,195.65,25.09381635]
[1736370579393,26.3527,195.75,195.64,25.09381635]
[1736370579908,26.3527,195.75,195.63,48.87070035]
[1736370581006,26.3527,195.75,195.64,25.09381635]
[1736370581216,26.3527,195.75,195.65,25.09381635]
[1736370583518,26.3527,195.75,195.63,23.776884]
[1736370583718,26.3527,195.75,195.66,25.09381635]
[1736370584514,26.3527,195.75,195.65,25.09381635]
[1736370587411,6.3527,195.75,195.67,25.09381635]
[1736370588721,6.3527,195.75,195.66,25.09381635]
[1736370590227,6.3527,195.75,195.67,25.09381635]
[1736370590622,6.3527,195.75,195.64,12.7785]
[1736370590822,6.3527,195.75,195.66,25.09381635]
[1736370591413,6.3527,195.75,195.67,15.69404718]
[1736370591926,6.3527,195.75,195.66,15.69404718]
[1736370592116,6.3527,195.75,195.63,15.69404718]
[1736370593912,6.3527,195.75,195.64,35.69404718]
[1736370595438,6.3527,195.75,195.65,15.69404718]
[1736370596528,6.3527,195.75,195.66,15.69404718]
[1736370596718,6.3527,195.75,195.68,15.69404718]
[1736370596912,6.3527,195.75,195.68,18.13404718]
[1736370597224,6.3527,195.75,195.68,2.44]
[1736370599639,6.3527,195.75,195.68,18.13404718]
[1736370601240,6.3527,195.75,195.68,2.44]
[1736370601850,6.3527,195.75,195.64,12.7782]
[1736370601851,6.3527,195.75,195.65,15.69404718]
[1736370602147,81.3,195.74,195.62,15.69404718]
[1736370602461,81.3,195.74,195.64,20.0]
[1736370603515,81.3,195.73,195.62,15.69404718]
[1736370604047,81.3,195.73,195.61,15.69404718]
[1736370604248,81.3,195.72,195.59,18.13404718]
[1736370605954,81.3,195.72,195.6,15.69404718]
[1736370607252,20.0,195.68,195.56,1.5118]
[1736370607435,26.0158,195.67,195.53,18.13404718]
[1736370607636,0.5169,195.66,195.49,12.7883]
[1736370607951,23.776884,195.62,195.49,28.48234718]
[1736370608156,23.776884,195.62,195.48,15.69404718]
[1736370608458,0.5169,195.57,195.46,15.69404718]
[1736370608630,0.5169,195.57,195.45,15.69404718]
[1736370608825,0.5169,195.57,195.46,15.69404718]
[1736370609030,0.5169,195.57,195.48,15.69404718]
[1736370609356,0.5169,195.57,195.49,15.69404718]
[1736370609556,0.5169,195.57,195.48,15.69404718]
[1736370610356,0.5169,195.57,195.47,15.69404718]
[1736370611060,0.5169,195.57,195.46,15.69404718]
[1736370611752,20.0,195.54,195.42,28.48684718]
[1736370612144,23.776884,195.53,195.42,15.69404718]
[1736370612345,23.776884,195.53,195.43,15.69404718]
[1736370612963,23.776884,195.53,195.42,15.69404718]
[1736370613263,23.776884,195.53,195.41,35.69404718]
[1736370613639,6.4044,195.52,195.4,15.69404718]
[1736370613933,6.4044,195.52,195.39,15.69404718]
[1736370614140,6.4044,195.52,195.4,15.69404718]
[1736370615044,6.4044,195.52,195.4,12.7937]
[1736370615363,6.4044,195.52,195.47,15.69404718]
[1736370615865,6.4044,195.52,195.46,15.69404718]
[1736370617357,6.4044,195.52,195.44,28.48534718]
[1736370617555,6.4044,195.52,195.4,164.0885]
[1736370617556,6.4044,195.52,195.42,15.69404718]
[1736370617863,6.4044,195.52,195.41,28.48764718]
[1736370618968,6.4044,195.52,195.42,15.69404718]
[1736370620069,6.4044,195.52,195.44,15.69404718]
[1736370621437,6.4044,195.52,195.41,12.7936]
[1736370621438,6.4044,195.52,195.41,28.48764718]
[1736370622661,6.4044,195.52,195.4,18.13404718]
[1736370622960,6.4044,195.52,195.4,15.69404718]
[1736370623461,6.4044,195.52,195.39,15.69404718]
[1736370623965,6.4044,195.52,195.4,15.69404718]
[1736370624366,6.4044,195.52,195.41,15.69404718]
[1736370625272,6.4044,195.52,195.4,15.69404718]
[1736370627168,23.776884,195.51,195.4,15.69404718]
[1736370627371,0.5169,195.5,195.38,30.92944718]
[1736370627572,20.0,195.48,195.38,2.44]
[1736370627871,20.0,195.48,195.36,15.69404718]
[1736370628051,20.0,195.48,195.37,15.69404718]
[1736370628259,20.0,195.48,195.38,15.69404718]
[1736370628973,20.0,195.48,195.39,15.69404718]
[1736370629458,2.9569,195.5,195.39,15.69404718]
[1736370629766,20.0,195.48,195.41,15.69404718]
[1736370630377,20.0,195.48,195.4,15.69404718]
[1736370630549,20.0,195.48,195.39,15.69404718]
[1736370630751,20.0,195.48,195.38,15.69404718]
[1736370631972,2.9569,195.5,195.42,15.69404718]
[1736370632151,0.5169,195.5,195.42,15.69404718]
[1736370632468,0.5169,195.5,195.41,15.69404718]
[1736370632649,0.5169,195.5,195.4,15.69404718]
[1736370633363,0.5169,195.5,195.41,15.69404718]
[1736370634261,0.5169,195.5,195.39,12.7945]
[1736370634262,0.5169,195.5,195.42,15.69404718]
[1736370634656,0.5169,195.5,195.41,15.69404718]
[1736370635057,0.5169,195.5,195.42,15.69404718]
[1736370635356,0.5169,195.5,195.43,15.69404718]
[1736370636373,0.5169,195.5,195.37,2.44]
[1736370636374,6.4044,195.52,195.44,2.44]
[1736370636550,6.4044,195.52,195.48,15.69404718]
[1736370636756,0.5169,195.54,195.49,15.69404718]
[1736370637076,0.5169,195.54,195.47,15.69404718]
[1736370637251,6.0834,195.57,195.52,15.69404718]
[1736370637788,6.0834,195.57,195.51,15.69404718]
[1736370637964,6.0834,195.57,195.49,15.69404718]
[1736370638377,6.0834,195.57,195.5,15.69404718]
[1736370641372,6.0834,195.57,195.5,18.15404718]
[1736370645172,6.0834,195.57,195.5,2.46]
[1736370645985,6.0834,195.57,195.48,15.69404718]
[1736370645986,6.0834,195.57,195.46,15.69404718]
[1736370646165,6.0834,195.57,195.47,2.44]
[1736370647090,6.0834,195.57,195.48,15.69404718]
[1736370647799,6.0834,195.57,195.47,18.13404718]
[1736370649969,6.0834,195.57,195.5,15.69404718]
[1736370650171,0.5169,195.59,195.53,15.69404718]
[1736370650370,6.4633,195.62,195.54,15.69404718]
[1736370650894,6.4633,195.62,195.53,15.69404718]
[1736370651089,6.4633,195.62,195.54,15.69404718]
[1736370652398,6.4633,195.62,195.52,15.69404718]
[1736370652700,6.4633,195.62,195.52,2.44]
[1736370653289,6.4633,195.62,195.52,18.13404718]
[1736370653599,6.4633,195.62,195.53,15.69404718]
[1736370653781,20.0,195.59,195.47,12.7891]
[1736370653986,20.0,195.59,195.45,15.69404718]
[1736370654183,6.2,195.54,195.43,15.69404718]
[1736370654386,6.2,195.54,195.41,15.69404718]
[1736370654701,6.2,195.54,195.42,15.69404718]
[1736370655696,6.2,195.54,195.4,27.06328417]
[1736370655697,20.0,195.5,195.4,27.06328417]
[1736370655885,0.5169,195.49,195.4,11.36923699]
[1736370656197,24.293784,195.49,195.4,11.36923699]
[1736370656576,0.5169,195.49,195.4,11.36923699]
[1736370657188,0.5169,195.49,195.41,15.69404718]
[1736370660184,6.7169,195.54,195.43,15.69404718]
[1736370660500,6.7169,195.54,195.46,15.69404718]
[1736370660708,6.7169,195.54,195.45,15.69404718]
[1736370660905,6.7169,195.54,195.43,35.69404718]
[1736370661200,6.7169,195.54,195.46,15.69404718]
[1736370661502,6.2,195.54,195.48,15.69404718]
[1736370661885,6.2,195.54,195.47,15.69404718]
[1736370664207,6.2,195.54,195.44,18.15404718]
[1736370664405,6.2,195.54,195.44,2.46]
[1736370667009,23.776884,195.53,195.42,15.69404718]
[1736370667210,105.076884,195.53,195.42,15.69404718]
[1736370667906,105.076884,195.53,195.43,15.69404718]
[1736370668211,0.5169,195.52,195.42,15.69404718]
[1736370668881,0.5169,195.52,195.41,18.13404718]
[1736370669098,20.0,195.5,195.39,15.69404718]
[1736370669422,20.0,195.5,195.37,2.44]
[1736370669423,23.776884,195.49,195.37,2.44]
[1736370669589,23.776884,195.49,195.36,18.13404718]
[1736370669789,23.776884,195.49,195.37,15.69404718]
[1736370669988,23.776884,195.49,195.36,18.13404718]
[1736370670714,23.776884,195.49,195.37,15.69404718]
[1736370671515,81.3,195.48,195.37,15.69404718]
[1736370672013,81.3,195.48,195.36,18.13404718]
[1736370672198,81.3,195.48,195.37,15.69404718]
[1736370672806,81.3,195.48,195.38,15.69404718]
[1736370673007,20.0,195.5,195.41,15.69404718]
[1736370673789,81.3,195.51,195.42,15.69404718]
[1736370673986,81.3,195.51,195.43,15.69404718]
[1736370674317,0.5169,195.52,195.46,15.69404718]
[1736370674509,6.2,195.54,195.49,15.69404718]
[1736370674706,7.91733875,195.56,195.49,15.69404718]
[1736370675212,0.5169,195.57,195.49,15.69404718]
[1736370676887,0.5169,195.57,195.51,15.69404718]
[1736370677111,6.366,195.58,195.51,15.69404718]
[1736370677417,6.366,195.58,195.52,15.69404718]
[1736370677588,0.5169,195.61,195.54,15.69404718]
[1736370678118,0.5169,195.61,195.53,15.69404718]
[1736370678315,0.5169,195.61,195.54,15.69404718]
[1736370678531,6.5919,195.63,195.55,15.69404718]
[1736370679093,6.5919,195.63,195.53,15.69404718]
[1736370679299,6.5919,195.63,195.52,35.69404718]
[1736370679699,6.5919,195.63,195.53,15.69404718]
[1736370680617,6.5919,195.63,195.52,20.0]
[1736370680618,6.5919,195.63,195.55,15.69404718]
[1736370681818,6.5919,195.63,195.54,15.69404718]
[1736370682320,6.5919,195.63,195.53,15.69404718]
[1736370683318,6.5919,195.63,195.55,15.69404718]
[1736370683510,6.5919,195.63,195.57,15.69404718]
[1736370683813,7.91733875,195.68,195.57,15.69404718]
[1736370683814,13.93813875,195.68,195.62,15.69404718]
[1736370684014,7.91733875,195.68,195.64,15.69404718]
[1736370684397,7.91733875,195.68,195.65,15.69404718]
[1736370684694,7.91733875,195.68,195.64,15.69404718]
[1736370684894,0.5169,195.71,195.63,15.69404718]
[1736370686703,0.5169,195.71,195.62,15.69404718]
[1736370687401,0.5169,195.71,195.63,15.69404718]
[1736370688542,0.5169,195.71,195.59,1.6181]
[1736370688704,0.5169,195.71,195.59,19.73214718]
[1736370688899,20.0,195.69,195.59,2.42]
[1736370689305,20.0,195.69,195.58,15.69404718]
[1736370689535,20.0,195.69,195.57,15.69404718]
[1736370690005,0.5169,195.71,195.64,15.69404718]
[1736370690404,0.5169,195.71,195.63,15.69404718]
[1736370691302,0.5169,195.71,195.62,15.69404718]
[1736370693715,0.5169,195.71,195.61,15.69404718]
[1736370694035,20.0,195.7,195.6,15.69404718]
[1736370694262,23.776884,195.7,195.54,1.6169]
[1736370694555,20.0,195.68,195.55,18.11404718]
[1736370694858,20.0,195.68,195.56,15.69404718]
[1736370696241,20.0,195.68,195.57,15.69404718]
[1736370696445,2.42,195.7,195.6,15.69404718]
[1736370696746,81.8169,195.71,195.6,15.69404718]
[1736370698641,81.8169,195.71,195.59,15.69404718]
[1736370698642,0.5169,195.71,195.59,15.69404718]
[1736370698845,20.0,195.69,195.59,15.69404718]
[1736370699048,20.0,195.69,195.56,15.69404718]
[1736370699251,20.0,195.69,195.55,15.69404718]
[1736370699549,20.0,195.64,195.53,18.11404718]
[1736370699746,20.0,195.64,195.56,15.69404718]
[1736370699924,20.0,195.64,195.55,15.69404718]
[1736370700244,6.2164,195.67,195.56,15.69404718]
[1736370703248,6.2164,195.67,195.59,15.69404718]
[1736370705848,6.2164,195.67,195.6,15.69404718]
[1736370706022,0.5169,195.71,195.63,15.69404718]
[1736370706229,0.5169,195.71,195.65,15.69404718]
[1736370706836,0.5169,195.71,195.64,15.69404718]
[1736370707250,0.5169,195.71,195.65,2.4]
[1736370708726,6.0144,195.72,195.66,15.69404718]
[1736370709038,0.5169,195.76,195.68,15.69404718]
[1736370709445,6.2259,195.77,195.71,15.69404718]
[1736370709643,2.55003392,195.81,195.73,15.69404718]
[1736370709848,2.55003392,195.81,195.74,15.69404718]
[1736370710234,0.5169,195.81,195.75,15.69404718]
[1736370710431,6.095,195.82,195.75,15.69404718]
[1736370710938,6.095,195.82,195.76,15.69404718]
[1736370711137,0.5169,195.86,195.78,15.69404718]
[1736370711340,0.5169,195.86,195.79,2.4]
[1736370711652,0.5169,195.86,195.8,2.4]
[1736370713659,24.293784,195.86,195.77,2.4]